[Event "European School-ch 2019"]
[Site "Mamaia"]
[Date "2019.06.01"]
[Round "2.48"]
[White "Rasheva, Nora"]
[Black "Bendik, Margarita"]
[Result "1-0"]
[ECO "D15"]
[WhiteElo "1473"]
[BlackElo "1077"]
[Annotator "NA"]
[PlyCount "119"]
[EventDate "2019.05.31"]
[EventType "swiss"]
[EventCountry "ROU"]
[SourceTitle "playchess.com"]
[Source "ChessBase"]
[SourceQuality "1"]
[TimeControl "40/5400+30:1800+30"]

1. d4 {[%emt 0:00:00]} d5 {[%emt 0:00:00]} 2. Nf3 {[%emt 0:00:00]} Nf6 {[%emt 0:00:00]} 3. c4 {[%emt 0:00:00]} c6 {[%emt 0:00:00]} 4. Nc3 {[%emt 0:00:07]} a6 {[%emt 0:00:02]} 5. Bg5 {[%emt 0:01:22]} dxc4 {[%emt 0:01:23]} 6. a4 {[%emt 0:00:28]} Nd5 {[%emt 0:02:42]} 7. a5 {[%emt 0:04:11]} g6 {[%emt 0:03:31]} 8. e4 {[%emt 0:00:50]} Nxc3 {[%emt 0:00:20]} 9. bxc3 {[%emt 0:00:08]} Be6 {[%emt 0:01:06]} 10. Qa4 {[%emt 0:04:23]} Bg7 {[%emt 0:00:44]} 11. Rb1 {[%emt 0:17:55]} Qc7 {[%emt 0:00:49]} 12. Qb4 {[%emt 0:03:25]} Ra7 {[%emt 0:02:26]} 13. Qc5 {[%emt 0:04:07]} Ra8 {[%emt 0:00:26]} 14. Bh4 {[%emt 0:04:54]} O-O {[%emt 0:03:20]} 15. Bxe7 {[%emt 0:05:26]} Re8 {[%emt 0:04:14]} 16. Bd6 {[%emt 0:00:07]} Qd7 {[%emt 0:00:11]} 17. Bxb8 {[%emt 0:00:51]} Raxb8 {[%emt 0:00:10]} 18. Be2 {[%emt 0:07:29]} Bf8 {[%emt 0:00:37]} 19. Qg5 {[%emt 0:01:48]} Bg4 {[%emt 0:01:13]} 20. Ne5 {[%emt 0:01:37]} Rxe5 {[%emt 0:01:18]} 21. Qxe5 {[%emt 0:00:16]} Re8 {[%emt 0:00:17]} 22. Bxg4 {[%emt 0:01:28]} f5 {[%emt 0:00:10]} 23. Bxf5 {[%emt 0:00:33]} gxf5 {[%emt 0:00:11]} 24. Qg3+ {[%emt 0:00:12]} Kh8 {[%emt 0:00:11]} 25. e5 {[%emt 0:00:17]} Re7 {[%emt 0:02:22]} 26. O-O {[%emt 0:00:41]} Qd5 {[%emt 0:00:09]} 27. f3 {[%emt 0:01:29]} Qxa5 {[%emt 0:00:15]} 28. Qh4 {[%emt 0:01:57]} Qxc3 {[%emt 0:00:25]} 29. Qf6+ {[%emt 0:00:23]} Kg8 {[%emt 0:00:10]} 30. Rfd1 {[%emt 0:04:19]} Qc2 {[%emt 0:00:46]} 31. Rbc1 {[%emt 0:00:54]} Qe2 {[%emt 0:00:14]} 32. Qxf5 {[%emt 0:01:19]} Rg7 {[%emt 0:00:21]} 33. Qh3 {[%emt 0:00:26]} Ba3 {[%emt 0:01:42]} 34. Re1 {[%emt 0:01:39]} Qb2 {[%emt 0:00:48]} 35. Rxc4 {[%emt 0:09:48]} Qd2 {[%emt 0:00:45]} 36. Rf1 {[%emt 0:00:52]} Qe3+ {[%emt 0:00:09]} 37. Kh1 {[%emt 0:00:26]} Qd3 {[%emt 0:00:32]} 38. Qe6+ {[%emt 0:00:10]} Kh8 {[%emt 0:00:27]} 39. Rg1 {[%emt 0:00:27]} Bb2 {[%emt 0:03:13]} 40. f4 {[%emt 0:00:00]} Bxd4 {[%emt 0:00:00]} 41. Rxd4 {[%emt 0:04:25]} Qxd4 {[%emt 0:01:10]} 42. f5 {[%emt 0:00:05]} Qd5 {[%emt 0:01:13]} 43. Qxd5 {[%emt 0:00:43]} cxd5 {[%emt 0:00:06]} 44. e6 {[%emt 0:00:22]} Re7 {[%emt 0:01:07]} 45. g4 {[%emt 0:02:46]} b5 {[%emt 0:00:12]} 46. Re1 {[%emt 0:00:11]} Kg7 {[%emt 0:02:53]} 47. g5 {[%emt 0:00:07]} Kf8 {[%emt 0:00:13]} 48. f6 {[%emt 0:00:05]} Re8 {[%emt 0:00:04]} 49. h4 {[%emt 0:00:49]} b4 {[%emt 0:00:10]} 50. h5 {[%emt 0:00:24]} Rb8 {[%emt 0:02:25]} 51. g6 {[%emt 0:00:37]} hxg6 {[%emt 0:00:05]} 52. hxg6 {[%emt 0:03:23]} b3 {[%emt 0:08:38]} 53. e7+ {[%emt 0:00:10]} Ke8 {[%emt 0:00:05]} 54. f7+ {[%emt 0:00:06]} Kd7 {[%emt 0:00:10]} 55. e8=Q+ {[%emt 0:00:07]} Rxe8 {[%emt 0:00:26]} 56. fxe8=Q+ {[%emt 0:00:10]} Kd6 {[%emt 0:00:09]} 57. Qe7+ {[%emt 0:00:06]} Kc6 {[%emt 0:00:04]} 58. Rc1+ {[%emt 0:00:14]} Kb5 {[%emt 0:00:10]} 59. Qc5+ {[%emt 0:00:07]} Ka4 {[%emt 0:00:07]} 60. Ra1# {[%emt 0:00:04]} 1-0

[Event "European School-ch 2019"]
[Site "Mamaia"]
[Date "2019.06.01"]
[Round "2.49"]
[White "Shuqja, Klean"]
[Black "Palos, Andra-Maria"]
[Result "1/2-1/2"]
[ECO "B13"]
[WhiteElo "1858"]
[BlackElo "1487"]
[Annotator "NA"]
[PlyCount "89"]
[EventDate "2019.05.31"]
[EventType "swiss"]
[EventCountry "ROU"]
[SourceTitle "playchess.com"]
[Source "ChessBase"]
[SourceQuality "1"]
[TimeControl "40/5400+30:1800+30"]

1. e4 {[%emt 0:00:00]} c6 {[%emt 0:00:00]} 2. d4 {[%emt 0:00:00]} d5 {[%emt 0:00:00]} 3. exd5 {[%emt 0:00:00]} cxd5 {[%emt 0:00:00]} 4. Bd3 {[%emt 0:00:00]} Nc6 {[%emt 0:00:36]} 5. c3 {[%emt 0:00:00]} Nf6 {[%emt 0:00:12]} 6. Bf4 {[%emt 0:00:00]} g6 {[%emt 0:00:40]} 7. Nf3 {[%emt 0:09:37]} Bf5 {[%emt 0:04:29]} 8. O-O {[%emt 0:02:01]} Bxd3 {[%emt 0:05:56]} 9. Qxd3 {[%emt 0:00:06]} Bg7 {[%emt 0:00:08]} 10. Nbd2 {[%emt 0:01:16]} O-O {[%emt 0:01:13]} 11. Rae1 {[%emt 0:02:40]} Rc8 {[%emt 0:12:00]} 12. Ne5 {[%emt 0:02:28]} e6 {[%emt 0:18:41]} 13. h3 {[%emt 0:09:20]} Nxe5 {[%emt 0:10:28]} 14. Bxe5 {[%emt 0:05:32]} Nd7 {[%emt 0:07:57]} 15. Bxg7 {[%emt 0:01:59]} Kxg7 {[%emt 0:00:07]} 16. f4 {[%emt 0:01:20]} h5 {[%emt 0:05:57]} 17. Qg3 {[%emt 0:03:29]} h4 {[%emt 0:06:32]} 18. Qg4 {[%emt 0:08:14]} Qf6 {[%emt 0:01:18]} 19. Nf3 {[%emt 0:01:22]} Rh8 {[%emt 0:00:53]} 20. Ng5 {[%emt 0:04:22]} Qf5 {[%emt 0:03:56]} 21. Qd1 {[%emt 0:03:41]} Rc4 {[%emt 0:08:33]} 22. Rf2 {[%emt 0:05:55]} Nb6 {[%emt 0:02:37]} 23. Re5 {[%emt 0:01:55]} Qf6 {[%emt 0:00:52]} 24. Qe2 {[%emt 0:02:06]} Rc6 {[%emt 0:01:37]} 25. Qf3 {[%emt 0:10:37]} Nc4 {[%emt 0:01:13]} 26. Re1 {[%emt 0:01:40]} Nd6 {[%emt 0:01:06]} 27. Rfe2 {[%emt 0:04:44]} Nf5 {[%emt 0:00:34]} 28. Qd3 {[%emt 0:03:34]} Ng3 {[%emt 0:01:46]} 29. Rf2 {[%emt 0:01:05]} a6 {[%emt 0:01:02]} 30. a4 {[%emt 0:00:55]} Rhc8 {[%emt 0:00:34]} 31. Rc1 {[%emt 0:02:22]} Rc4 {[%emt 0:01:02]} 32. Ra1 {[%emt 0:04:42]} Qf5 {[%emt 0:02:33]} 33. Qe3 {[%emt 0:01:23]} Qf6 {[%emt 0:01:05]} 34. Kh2 {[%emt 0:01:59]} Qf5 {[%emt 0:00:35]} 35. a5 {[%emt 0:03:23]} Qf6 {[%emt 0:00:11]} 36. Rd1 {[%emt 0:01:48]} Nf5 {[%emt 0:00:45]} 37. Qf3 {[%emt 0:02:18]} R8c7 {[%emt 0:00:51]} 38. Rfd2 {[%emt 0:00:32]} Rc8 {[%emt 0:00:15]} 39. Rd3 {[%emt 0:00:29]} Ra4 {[%emt 0:00:40]} 40. b4 {[%emt 0:00:00]} Ra3 {[%emt 0:00:00]} 41. Rc1 {[%emt 0:04:51]} Ra2 {[%emt 0:13:23]} 42. Rf1 {[%emt 0:16:43]} Ng3 {[%emt 0:03:11]} 43. Re1 {[%emt 0:02:44]} Qf5 {[%emt 0:03:17]} 44. Qe3 {[%emt 0:01:44]} Rc2 {[%emt 0:05:25]} 45. Qf3 {[%emt 0:03:55]} 1/2-1/2

[Event "European School-ch 2019"]
[Site "Mamaia"]
[Date "2019.06.01"]
[Round "2.50"]
[White "Petricenco, Ana"]
[Black "Kapicakova, Lucia"]
[Result "0-1"]
[ECO "B10"]
[WhiteElo "1484"]
[BlackElo "1776"]
[Annotator "NA"]
[PlyCount "60"]
[EventDate "2019.05.31"]
[EventType "swiss"]
[EventCountry "ROU"]
[SourceTitle "playchess.com"]
[Source "ChessBase"]
[SourceQuality "1"]
[TimeControl "40/5400+30:1800+30"]

1. e4 {[%emt 0:00:00]} c6 {[%emt 0:00:00]} 2. d3 {[%emt 0:00:00]} d5 {[%emt 0:00:16]} 3. Nd2 {[%emt 0:00:00]} dxe4 {[%emt 0:03:52]} 4. dxe4 {[%emt 0:00:00]} Nd7 {[%emt 0:01:52]} 5. Ngf3 {[%emt 0:00:51]} e5 {[%emt 0:03:23]} 6. Be2 {[%emt 0:01:42]} Ngf6 {[%emt 0:05:04]} 7. O-O {[%emt 0:02:30]} Be7 {[%emt 0:03:35]} 8. c3 {[%emt 0:00:29]} O-O {[%emt 0:01:54]} 9. Qc2 {[%emt 0:00:46]} Qc7 {[%emt 0:05:33]} 10. a4 {[%emt 0:02:42]} b6 {[%emt 0:03:05]} 11. Nc4 {[%emt 0:01:18]} Bb7 {[%emt 0:01:27]} 12. Re1 {[%emt 0:02:33]} Rfe8 {[%emt 0:06:45]} 13. Bf1 {[%emt 0:01:48]} Rad8 {[%emt 0:03:49]} 14. Ne3 {[%emt 0:05:53]} g6 {[%emt 0:07:13]} 15. Bd2 {[%emt 0:03:57]} Bf8 {[%emt 0:03:41]} 16. Rad1 {[%emt 0:01:14]} Bg7 {[%emt 0:06:47]} 17. Bc1 {[%emt 0:01:01]} Nc5 {[%emt 0:06:42]} 18. Rxd8 {[%emt 0:02:13]} Rxd8 {[%emt 0:04:22]} 19. Nc4 {[%emt 0:00:32]} Ne8 {[%emt 0:05:55]} 20. b4 {[%emt 0:00:36]} Ne6 {[%emt 0:01:26]} 21. Ng5 {[%emt 0:08:08]} Nxg5 {[%emt 0:04:35]} 22. Bxg5 {[%emt 0:00:10]} Rd7 {[%emt 0:03:24]} 23. f3 {[%emt 0:03:35]} Nd6 {[%emt 0:06:54]} 24. Rd1 {[%emt 0:02:46]} f6 {[%emt 0:03:42]} 25. Be3 {[%emt 0:00:16]} Qd8 {[%emt 0:01:01]} 26. Qd2 {[%emt 0:04:28]} Bf8 {[%emt 0:01:29]} 27. Bc5 {[%emt 0:10:22]} bxc5 {[%emt 0:01:40]} 28. bxc5 {[%emt 0:01:26]} Nxe4 {[%emt 0:00:31]} 29. Qxd7 {[%emt 0:00:18]} Bxc5+ {[%emt 0:00:09]} 30. Kh1 {[%emt 0:00:17]} Nf2+ {[%emt 0:00:08]} 0-1

[Event "European School-ch 2019"]
[Site "Mamaia"]
[Date "2019.06.01"]
[Round "2.51"]
[White "Karaivanova, Petya"]
[Black "Mamardashvili, Ana"]
[Result "1/2-1/2"]
[ECO "B13"]
[WhiteElo "1688"]
[BlackElo "1415"]
[Annotator "NA"]
[PlyCount "165"]
[EventDate "2019.05.31"]
[EventType "swiss"]
[EventCountry "ROU"]
[SourceTitle "playchess.com"]
[Source "ChessBase"]
[SourceQuality "1"]
[TimeControl "40/5400+30:1800+30"]

1. e4 {[%emt 0:00:00]} c6 {[%emt 0:00:00]} 2. d4 {[%emt 0:00:00]} d5 {[%emt 0:00:00]} 3. exd5 {[%emt 0:00:00]} cxd5 {[%emt 0:00:00]} 4. Bd3 {[%emt 0:00:00]} Nc6 {[%emt 0:00:02]} 5. c3 {[%emt 0:00:07]} Qc7 {[%emt 0:00:16]} 6. Nf3 {[%emt 0:01:22]} Bg4 {[%emt 0:00:46]} 7. h3 {[%emt 0:00:17]} Bh5 {[%emt 0:06:31]} 8. g4 {[%emt 0:05:52]} Bg6 {[%emt 0:00:10]} 9. Bb5 {[%emt 0:02:14]} f6 {[%emt 0:12:11]} 10. Qe2 {[%emt 0:03:52]} Bf7 {[%emt 0:07:12]} 11. Nbd2 {[%emt 0:05:47]} O-O-O {[%emt 0:08:28]} 12. Nb3 {[%emt 0:07:27]} e6 {[%emt 0:07:03]} 13. Be3 {[%emt 0:05:15]} Bd6 {[%emt 0:02:52]} 14. a3 {[%emt 0:14:24]} e5 {[%emt 0:12:13]} 15. O-O-O {[%emt 0:09:21]} Kb8 {[%emt 0:09:32]} 16. Kb1 {[%emt 0:01:59]} a6 {[%emt 0:09:15]} 17. Bxc6 {[%emt 0:00:26]} Qxc6 {[%emt 0:00:04]} 18. Ka2 {[%emt 0:02:14]} Ne7 {[%emt 0:02:16]} 19. Rc1 {[%emt 0:03:44]} Qc4 {[%emt 0:03:46]} 20. Qd1 {[%emt 0:02:14]} Rc8 {[%emt 0:02:33]} 21. Nfd2 {[%emt 0:03:23]} Qb5 {[%emt 0:00:22]} 22. Ka1 {[%emt 0:03:17]} Ng6 {[%emt 0:03:21]} 23. Nf3 {[%emt 0:05:27]} Rhd8 {[%emt 0:02:40]} 24. Ne1 {[%emt 0:01:03]} e4 {[%emt 0:02:21]} 25. Ng2 {[%emt 0:02:49]} Rc6 {[%emt 0:04:21]} 26. Nd2 {[%emt 0:03:33]} Qa5 {[%emt 0:01:29]} 27. Ka2 {[%emt 0:01:27]} Rdc8 {[%emt 0:01:35]} 28. Nb3 {[%emt 0:00:56]} Qb5 {[%emt 0:00:32]} 29. Nd2 {[%emt 0:00:50]} Rb6 {[%emt 0:00:56]} 30. Rb1 {[%emt 0:01:05]} Qa5 {[%emt 0:00:54]} 31. Nb3 {[%emt 0:03:19]} Qb5 {[%emt 0:00:27]} 32. Nd2 {[%emt 0:01:10]} Qa5 {[%emt 0:00:37]} 33. Rc1 {[%emt 0:03:31]} Qb5 {[%emt 0:00:35]} 34. Qb3 {[%emt 0:01:02]} Qa5 {[%emt 0:00:40]} 35. Qd1 {[%emt 0:00:22]} Ne5 {[%emt 0:00:47]} 36. b4 {[%emt 0:01:45]} Bxb4 {[%emt 0:00:37]} 37. cxb4 {[%emt 0:00:07]} Rxb4 {[%emt 0:00:07]} 38. Rxc8+ {[%emt 0:01:20]} Kxc8 {[%emt 0:00:01]} 39. Qc2+ {[%emt 0:02:19]} Kd8 {[%emt 0:01:06]} 40. Rc1 {[%emt 0:00:00]} Nc6 {[%emt 0:00:00]} 41. Qc5 {[%emt 0:07:29]} Rb5 {[%emt 0:10:11]} 42. Qf8+ {[%emt 0:01:27]} Be8 {[%emt 0:00:05]} 43. Nb3 {[%emt 0:07:54]} Qa4 {[%emt 0:02:47]} 44. Rc3 {[%emt 0:10:07]} Nb4+ {[%emt 0:04:31]} 45. Kb2 {[%emt 0:00:40]} Nd3+ {[%emt 0:03:28]} 46. Kc2 {[%emt 0:00:35]} Rxb3 {[%emt 0:08:08]} 47. Rxb3 {[%emt 0:00:28]} Qc4+ {[%emt 0:00:06]} 48. Rc3 {[%emt 0:01:50]} Qa2+ {[%emt 0:00:08]} 49. Kd1 {[%emt 0:00:16]} Nb2+ {[%emt 0:02:12]} 50. Kd2 {[%emt 0:03:24]} Nc4+ {[%emt 0:01:19]} 51. Ke1 {[%emt 0:00:07]} Qb2 {[%emt 0:01:19]} 52. Rc1 {[%emt 0:00:30]} Nxe3 {[%emt 0:00:33]} 53. Qd6+ {[%emt 0:00:17]} Bd7 {[%emt 0:00:08]} 54. Qc7+ {[%emt 0:00:17]} Ke8 {[%emt 0:01:01]} 55. Nxe3 {[%emt 0:01:00]} Bc6 {[%emt 0:01:28]} 56. Rc2 {[%emt 0:02:35]} Qa1+ {[%emt 0:00:12]} 57. Nd1 {[%emt 0:01:44]} Qxd4 {[%emt 0:01:11]} 58. Qxg7 {[%emt 0:00:49]} Qa4 {[%emt 0:00:32]} 59. Rc3 {[%emt 0:00:52]} d4 {[%emt 0:00:16]} 60. Qg8+ {[%emt 0:00:20]} Ke7 {[%emt 0:00:17]} 61. Qxh7+ {[%emt 0:01:17]} Ke8 {[%emt 0:00:33]} 62. Qg8+ {[%emt 0:00:24]} Ke7 {[%emt 0:00:16]} 63. Qc4 {[%emt 0:00:43]} dxc3 {[%emt 0:00:52]} 64. Qxc3 {[%emt 0:00:24]} Qb5 {[%emt 0:00:41]} 65. Nb2 {[%emt 0:00:44]} Qg5 {[%emt 0:00:38]} 66. Qb4+ {[%emt 0:00:21]} Kf7 {[%emt 0:00:24]} 67. Qc3 {[%emt 0:00:05]} Qf4 {[%emt 0:00:38]} 68. Qc4+ {[%emt 0:00:26]} Kg7 {[%emt 0:00:17]} 69. Qc3 {[%emt 0:00:46]} Qh2 70. a4 {[%emt 0:00:55]} Qg1+ {[%emt 0:01:15]} 71. Ke2 {[%emt 0:00:05]} Qh2 {[%emt 0:00:33]} 72. Qa3 {[%emt 0:00:19]} Qe5 {[%emt 0:00:25]} 73. Nc4 {[%emt 0:00:44]} Qe6 {[%emt 0:00:25]} 74. Ne3 {[%emt 0:00:36]} b5 {[%emt 0:00:43]} 75. Nf5+ {[%emt 0:00:25]} Kf7 {[%emt 0:00:26]} 76. Nd6+ {[%emt 0:00:39]} Kg7 {[%emt 0:00:14]} 77. axb5 {[%emt 0:00:29]} Bxb5+ {[%emt 0:00:13]} 78. Ke1 {[%emt 0:00:21]} Qe5 {[%emt 0:00:52]} 79. Nf5+ {[%emt 0:00:24]} Kf7 {[%emt 0:00:20]} 80. Qa2+ {[%emt 0:00:39]} Kf8 {[%emt 0:00:29]} 81. Qa5 {[%emt 0:00:46]} Qd5 {[%emt 0:00:57]} 82. Qa3+ {[%emt 0:00:37]} Kf7 {[%emt 0:00:47]} 83. Qe7+ {[%emt 0:00:07]} 1/2-1/2

[Event "European School-ch 2019"]
[Site "Mamaia"]
[Date "2019.06.01"]
[Round "2.52"]
[White "Putinceva, Marina"]
[Black "Jayawarna, Tarini"]
[Result "1-0"]
[ECO "C07"]
[WhiteElo "1471"]
[BlackElo "1337"]
[Annotator "NA"]
[PlyCount "115"]
[EventDate "2019.05.31"]
[EventType "swiss"]
[EventCountry "ROU"]
[SourceTitle "playchess.com"]
[Source "ChessBase"]
[SourceQuality "1"]
[TimeControl "40/5400+30:1800+30"]

1. e4 {[%emt 0:00:00]} e6 {[%emt 0:00:00]} 2. d4 {[%emt 0:00:00]} d5 {[%emt 0:00:00]} 3. Nd2 {[%emt 0:00:00]} c5 {[%emt 0:00:00]} 4. exd5 {[%emt 0:00:03]} Qxd5 {[%emt 0:00:00]} 5. Ngf3 {[%emt 0:00:26]} cxd4 {[%emt 0:00:06]} 6. Bc4 {[%emt 0:00:43]} Qd6 {[%emt 0:00:24]} 7. O-O {[%emt 0:00:33]} Nf6 {[%emt 0:00:41]} 8. Nb3 {[%emt 0:01:06]} Nc6 {[%emt 0:00:12]} 9. Nbxd4 {[%emt 0:00:58]} Nxd4 {[%emt 0:00:06]} 10. Nxd4 {[%emt 0:01:50]} Bd7 {[%emt 0:00:12]} 11. c3 {[%emt 0:02:21]} Qc7 {[%emt 0:00:53]} 12. Bb3 {[%emt 0:01:08]} Bc5 {[%emt 0:08:20]} 13. Re1 {[%emt 0:05:28]} O-O {[%emt 0:02:20]} 14. Bg5 {[%emt 0:02:15]} Ne8 {[%emt 0:12:22]} 15. Qd3 {[%emt 0:05:13]} Qb6 {[%emt 0:41:00]} 16. Rad1 {[%emt 0:08:21]} Nc7 {[%emt 0:11:13]} 17. Kh1 {[%emt 0:07:46]} Nb5 {[%emt 0:02:39]} 18. Nxb5 {[%emt 0:05:30]} Bxb5 {[%emt 0:00:15]} 19. c4 {[%emt 0:00:26]} Bc6 {[%emt 0:00:45]} 20. Be3 {[%emt 0:01:02]} Bxe3 {[%emt 0:02:46]} 21. Qxe3 {[%emt 0:00:19]} Qa6 {[%emt 0:01:34]} 22. Qf4 {[%emt 0:04:46]} Ba4 {[%emt 0:01:20]} 23. Rd3 {[%emt 0:10:47]} Rfd8 {[%emt 0:02:59]} 24. Rg3 {[%emt 0:02:02]} Bxb3 {[%emt 0:00:57]} 25. Qg5 {[%emt 0:02:30]} g6 {[%emt 0:00:33]} 26. axb3 {[%emt 0:00:10]} Qb6 {[%emt 0:01:02]} 27. Kg1 {[%emt 0:07:04]} Qd4 {[%emt 0:00:35]} 28. h4 {[%emt 0:02:57]} Qxb2 {[%emt 0:01:09]} 29. h5 {[%emt 0:01:54]} Qg7 {[%emt 0:00:30]} 30. hxg6 {[%emt 0:06:23]} hxg6 {[%emt 0:00:08]} 31. Re4 {[%emt 0:01:29]} Rd1+ {[%emt 0:03:53]} 32. Kh2 {[%emt 0:00:44]} Qa1 {[%emt 0:01:01]} 33. Rf3 {[%emt 0:02:38]} Rh1+ {[%emt 0:00:42]} 34. Kg3 {[%emt 0:00:19]} Rh5 {[%emt 0:00:15]} 35. Qe7 {[%emt 0:01:57]} Rf8 {[%emt 0:03:15]} 36. Rxe6 {[%emt 0:04:29]} Qg7 {[%emt 0:01:14]} 37. Re4 {[%emt 0:03:06]} Qh6 {[%emt 0:01:23]} 38. Rg4 {[%emt 0:01:54]} Rh1 {[%emt 0:00:30]} 39. Rh4 {[%emt 0:00:36]} Rxh4 {[%emt 0:00:35]} 40. Qxh4 {[%emt 0:00:00]} Qxh4+ {[%emt 0:00:00]} 41. Kxh4 {[%emt 0:00:07]} Rd8 {[%emt 0:02:37]} 42. Re3 {[%emt 0:00:45]} Kf8 {[%emt 0:00:57]} 43. Kg4 {[%emt 0:00:59]} Re8 {[%emt 0:10:26]} 44. Kf4 {[%emt 0:03:57]} f6 {[%emt 0:06:05]} 45. Rxe8+ {[%emt 0:06:44]} Kxe8 {[%emt 0:00:03]} 46. Ke4 {[%emt 0:00:57]} Ke7 {[%emt 0:00:25]} 47. Kd5 {[%emt 0:00:17]} Kd7 {[%emt 0:00:15]} 48. g4 {[%emt 0:01:10]} g5 {[%emt 0:01:58]} 49. c5 {[%emt 0:01:27]} Ke7 {[%emt 0:01:35]} 50. b4 {[%emt 0:07:58]} Kd7 {[%emt 0:01:55]} 51. f3 {[%emt 0:07:53]} Ke7 {[%emt 0:00:31]} 52. c6 {[%emt 0:00:43]} b5 {[%emt 0:04:56]} 53. Kc5 {[%emt 0:00:27]} a6 {[%emt 0:00:05]} 54. Kb6 {[%emt 0:00:17]} Kd6 {[%emt 0:00:17]} 55. c7 {[%emt 0:00:25]} Ke5 {[%emt 0:01:04]} 56. c8=Q {[%emt 0:00:13]} Kf4 {[%emt 0:00:12]} 57. Qf5+ {[%emt 0:00:15]} Kg3 {[%emt 0:00:08]} 58. Qxf6 {[%emt 0:00:04]} 1-0

[Event "European School-ch 2019"]
[Site "Mamaia"]
[Date "2019.06.01"]
[Round "2.53"]
[White "Obada, Ema"]
[Black "Ruzic, Pia Marie"]
[Result "1-0"]
[ECO "C01"]
[WhiteElo "1889"]
[BlackElo "1917"]
[Annotator "NA"]
[PlyCount "105"]
[EventDate "2019.05.31"]
[EventType "swiss"]
[EventCountry "ROU"]
[SourceTitle "playchess.com"]
[Source "ChessBase"]
[SourceQuality "1"]
[TimeControl "40/5400+30:1800+30"]

1. e4 {[%emt 0:00:00]} e6 {[%emt 0:00:00]} 2. d4 {[%emt 0:00:00]} d5 {[%emt 0:00:00]} 3. exd5 {[%emt 0:00:00]} exd5 {[%emt 0:00:00]} 4. Bd3 {[%emt 0:00:00]} Bd6 {[%emt 0:00:36]} 5. c3 {[%emt 0:00:41]} Ne7 {[%emt 0:00:08]} 6. Qf3 {[%emt 0:00:52]} Nbc6 {[%emt 0:02:31]} 7. Ne2 {[%emt 0:00:30]} Be6 {[%emt 0:01:50]} 8. Bf4 {[%emt 0:02:14]} Qd7 {[%emt 0:00:47]} 9. h3 {[%emt 0:04:57]} O-O-O {[%emt 0:07:43]} 10. Bxd6 {[%emt 0:04:42]} Qxd6 {[%emt 0:02:45]} 11. Nd2 {[%emt 0:01:31]} Kb8 {[%emt 0:06:42]} 12. Nb3 {[%emt 0:04:52]} g6 {[%emt 0:14:11]} 13. O-O-O {[%emt 0:16:20]} h5 {[%emt 0:05:11]} 14. g4 {[%emt 0:13:00]} h4 {[%emt 0:15:35]} 15. Qe3 {[%emt 0:05:54]} Rde8 {[%emt 0:02:49]} 16. Qd2 {[%emt 0:05:59]} f6 {[%emt 0:02:14]} 17. Nf4 {[%emt 0:06:36]} Bf7 {[%emt 0:00:16]} 18. Ng2 {[%emt 0:00:42]} Nc8 {[%emt 0:06:47]} 19. f4 {[%emt 0:01:12]} Nd8 {[%emt 0:08:25]} 20. Qf2 {[%emt 0:02:43]} g5 {[%emt 0:00:12]} 21. fxg5 {[%emt 0:13:00]} fxg5 {[%emt 0:00:06]} 22. Ne3 {[%emt 0:00:56]} Rhf8 {[%emt 0:02:48]} 23. Nf5 {[%emt 0:00:54]} Qf6 {[%emt 0:00:12]} 24. Nc5 {[%emt 0:02:00]} Be6 {[%emt 0:01:13]} 25. Qc2 {[%emt 0:01:56]} Nd6 {[%emt 0:01:51]} 26. Rhf1 {[%emt 0:00:55]} Nxf5 {[%emt 0:04:58]} 27. Bxf5 {[%emt 0:03:34]} Bxf5 {[%emt 0:00:13]} 28. Rxf5 {[%emt 0:00:12]} Qd6 {[%emt 0:08:34]} 29. Rxg5 {[%emt 0:00:57]} Rf3 {[%emt 0:01:45]} 30. Rg6 {[%emt 0:03:47]} Qf4+ {[%emt 0:00:33]} 31. Kb1 {[%emt 0:00:32]} Rf2 {[%emt 0:02:50]} 32. Qb3 {[%emt 0:00:05]} Kc8 {[%emt 0:01:07]} 33. Qxd5 {[%emt 0:00:55]} Qf3 {[%emt 0:00:34]} 34. Qf5+ {[%emt 0:02:49]} Qxf5+ {[%emt 0:00:21]} 35. gxf5 {[%emt 0:00:03]} Rxf5 {[%emt 0:00:30]} 36. Rdg1 {[%emt 0:00:58]} b6 {[%emt 0:00:25]} 37. Nd3 {[%emt 0:00:13]} Rf3 {[%emt 0:01:14]} 38. Ne5 {[%emt 0:00:06]} Rxh3 {[%emt 0:00:32]} 39. Rg8 {[%emt 0:00:12]} Re7 {[%emt 0:00:22]} 40. Rh8 {[%emt 0:00:00]} Rg3 {[%emt 0:00:00]} 41. Rf1 {[%emt 0:03:18]} c5 {[%emt 0:13:44]} 42. Rff8 {[%emt 0:00:14]} cxd4 {[%emt 0:01:11]} 43. Rxd8+ {[%emt 0:00:32]} Kb7 {[%emt 0:01:28]} 44. cxd4 {[%emt 0:01:06]} Rc7 {[%emt 0:01:28]} 45. a3 {[%emt 0:00:30]} h3 {[%emt 0:00:40]} 46. d5 {[%emt 0:02:58]} Re7 {[%emt 0:02:47]} 47. Nc4 {[%emt 0:01:46]} Re2 {[%emt 0:00:52]} 48. Rd7+ {[%emt 0:01:06]} Ka6 {[%emt 0:00:05]} 49. Rdh7 {[%emt 0:00:13]} Rgg2 {[%emt 0:00:31]} 50. Rxh3 {[%emt 0:02:31]} Kb5 {[%emt 0:03:10]} 51. Rc3 {[%emt 0:00:39]} Rg1+ {[%emt 0:02:20]} 52. Ka2 {[%emt 0:00:05]} Ree1 {[%emt 0:00:06]} 53. Kb3 {[%emt 0:01:20]} 1-0

[Event "European School-ch 2019"]
[Site "Mamaia"]
[Date "2019.06.01"]
[Round "2.54"]
[White "Donghvani, Nia"]
[Black "Zyapaeva, Polina"]
[Result "1/2-1/2"]
[ECO "A10"]
[WhiteElo "1840"]
[BlackElo "1806"]
[Annotator "NA"]
[PlyCount "59"]
[EventDate "2019.05.31"]
[EventType "swiss"]
[EventCountry "ROU"]
[SourceTitle "playchess.com"]
[Source "ChessBase"]
[SourceQuality "1"]
[TimeControl "40/5400+30:1800+30"]

1. c4 {[%emt 0:00:00]} b6 {[%emt 0:01:11]} 2. d4 {[%emt 0:03:40]} Bb7 {[%emt 0:04:01]} 3. Nc3 {[%emt 0:04:27]} f5 {[%emt 0:05:08]} 4. d5 {[%emt 0:10:50]} Nf6 {[%emt 0:02:47]} 5. Bg5 {[%emt 0:02:59]} Na6 {[%emt 0:15:36]} 6. h4 {[%emt 0:23:45]} Nc5 {[%emt 0:12:31]} 7. Bxf6 {[%emt 0:08:46]} exf6 {[%emt 0:00:46]} 8. Qc2 {[%emt 0:00:03]} f4 {[%emt 0:08:49]} 9. Nf3 {[%emt 0:11:44]} a5 {[%emt 0:07:17]} 10. O-O-O {[%emt 0:14:32]} Ba6 {[%emt 0:07:53]} 11. e3 {[%emt 0:02:06]} Bd6 {[%emt 0:07:49]} 12. h5 {[%emt 0:05:43]} Qe7 {[%emt 0:02:37]} 13. exf4 {[%emt 0:02:57]} Bxf4+ {[%emt 0:01:00]} 14. Kb1 {[%emt 0:00:01]} O-O-O {[%emt 0:00:23]} 15. g3 {[%emt 0:00:46]} Bd6 {[%emt 0:01:45]} 16. Nd4 {[%emt 0:00:57]} Be5 {[%emt 0:02:25]} 17. Nf5 {[%emt 0:02:11]} Qf7 {[%emt 0:01:06]} 18. f4 {[%emt 0:00:54]} Bxc3 {[%emt 0:00:31]} 19. Qxc3 {[%emt 0:00:02]} g6 {[%emt 0:02:06]} 20. Nd4 {[%emt 0:00:47]} Ne4 {[%emt 0:01:15]} 21. Qf3 {[%emt 0:00:06]} f5 {[%emt 0:00:50]} 22. g4 {[%emt 0:02:39]} Rhg8 {[%emt 0:03:51]} 23. g5 {[%emt 0:01:00]} Rde8 {[%emt 0:00:35]} 24. h6 {[%emt 0:00:13]} Nc5 {[%emt 0:00:15]} 25. Nb5 {[%emt 0:00:36]} Kb8 {[%emt 0:01:46]} 26. Rg1 {[%emt 0:00:35]} Re4 {[%emt 0:00:13]} 27. Nc3 {[%emt 0:00:35]} Ree8 {[%emt 0:00:24]} 28. Nb5 {[%emt 0:00:22]} Re4 {[%emt 0:00:05]} 29. Nc3 {[%emt 0:00:04]} Ree8 {[%emt 0:00:08]} 30. Nb5 {[%emt 0:00:53]} 1/2-1/2